fUSD/lending_fUSD_20250119
["ID","MTS","AMOUNT","RATE_DAILY","PERIOD"]
[349619700,1737329470236,-606985.39973363,0.00022,2]
[349619701,1737329470248,-10051.6969912,0.00022,2]
[349619702,1737329470260,-2219.533677,0.00022,2]
[349619703,1737329470283,-517.7691157,0.00022,2]
[349619704,1737329470586,-3947.26672628,0.00022,2]
[349619705,1737329470598,-4975.51485734,0.00022,2]
[349619706,1737329470610,-5211.57349849,0.00022,2]
[349619707,1737329470622,-252.90102083,0.00022,2]
[349619708,1737329470633,-1282.76446084,0.00022,2]
[349619709,1737329470646,-2729.40718883,0.00022,2]
[349619710,1737329470657,-100999.99999997,0.00022,2]
[349619711,1737329470669,-274.176,0.00022,2]
[349619712,1737329470680,-7259.42425626,0.00022,2]
[349619713,1737329470691,-1073.32697681,0.00022,2]
[349619714,1737329470707,-2715.84665235,0.00022,2]
[349619715,1737329470719,-809.98594867,0.00022,2]
[349619716,1737329470730,-9361.21597944,0.00022,2]
[349619717,1737329470741,-640.64468577,0.00022,2]
[349619718,1737329470753,-455.84576,0.00022,2]
[349619719,1737329470764,-19357.75309797,0.00022,2]
[349619720,1737329470775,-598.19075779,0.00022,2]
[349619721,1737329470787,-50761.66439743,0.00022,2]
[349619722,1737329470806,-1060.64128782,0.00022,2]
[349619723,1737329470818,-1002.25627481,0.00022,2]
[349619724,1737329470830,-17044.3107339,0.00022,2]
[349619725,1737329470842,-394.41874425,0.00022,2]
[349619726,1737329470854,-278.24456726,0.00022,2]
[349619727,1737329470865,-1792.50921052,0.00022,2]
[349619728,1737329470876,-8120.3693385,0.00022,2]
[349619729,1737329470939,-500.0,0.0001994,2]
[349619730,1737329470948,-6.3431552,0.00021454,2]
[349619731,1737329470960,-751.4138448,0.00021454,2]
[349619732,1737329470969,-36749.78374326,0.00022,2]
[349619733,1737329470981,-743.2500025,0.00022,2]
[349619734,1737329470992,-1007.6,0.00022,2]
[349619735,1737329471004,-23071.85141126,0.00022,2]
[349619736,1737329471015,-12155.7679849,0.00022,2]
[349619737,1737329471027,-1114.09500001,0.00022,2]
[349619738,1737329471038,-751.21266616,0.00022,2]
[349619739,1737329471055,-32065.64421013,0.00022,2]
[349619740,1737329471074,-350.79000003,0.00022,2]
[349619741,1737329471084,-2237.808,0.00022,2]
[349619742,1737329471096,-13136.1787502,0.00022,2]
[349619743,1737329471107,-279.94646643,0.00022,2]
[349619744,1737329471117,-2006.0,0.00022,2]
[349619745,1737329471128,-27550.88,0.00022,2]
[349619746,1737329471139,-5558.0,0.00022,2]
[349619747,1737329471150,-4126.13424394,0.00022,2]
[349619748,1737329471161,-251.25,0.00022,2]
[349619749,1737329471201,-142607.36731989,0.00022,2]
[349619750,1737329471211,-200.99,0.00022,2]
[349619751,1737329471221,-3141.70981322,0.00022,2]
[349619752,1737329471232,-265.7675427,0.00022,2]
[349619753,1737329471565,-500.0,0.00020514,2]
[349619754,1737329471575,-602.84915908,0.00020566,2]
[349619755,1737329471584,-500.0,0.00020788,2]
[349619756,1737329471594,-387.5,0.00021062,2]
[349619757,1737329471604,-650.21053946,0.00021442,2]
[349619758,1737329471613,-21985.05932883,0.00022,2]
[349619759,1737329471625,-1204.59999995,0.00022,2]
[349619760,1737329471636,-22051.15754896,0.00022,2]
[349619761,1737329471647,-5197.04994013,0.00022,2]
[349619762,1737329471659,-8850.0,0.00022,2]
[349619763,1737329471670,-250.5098,0.00022,2]
[349619764,1737329471709,-3028.33230841,0.00022,2]
[349619765,1737329471720,-1082.08695087,0.00022,2]
[349619766,1737329471731,-1315.17357776,0.00022,2]
[349619767,1737329471743,-260.65518375,0.00022,2]
[349619768,1737329471754,-277.65508763,0.00022,2]
[349619769,1737329471764,-6396.59919867,0.00022,2]
[349619770,1737329472209,-1220.31603624,0.0001976,2]
[349619771,1737329472221,-16371.60859058,0.0001976,2]
[349619772,1737329472233,-6308.07537318,0.0001976,2]
[349619773,1737329472245,-500.0,0.0001994,2]
[349619774,1737329472255,-500.0,0.00020214,2]
[349619775,1737329472264,-531.04,0.00020513,2]
[349619776,1737329472274,-579.66,0.00020514,2]
[349619777,1737329472286,-500.0,0.00020566,2]
[349619778,1737329472302,-500.0,0.0002084,2]
[349619779,1737329472312,-500.0,0.00021114,2]
[349619780,1737329472326,-500.0,0.00021388,2]
[349619781,1737329472335,-569.29,0.00021454,2]
[349619782,1737329472345,-260.549,0.00021454,2]
[349619783,1737329472355,-19022.38562682,0.00022,2]
[349619784,1737329472368,-1012.8118,0.00022,2]
[349619785,1737329472492,-500.0,0.00020488,2]
[349619786,1737329472503,-272.00614923,0.00021662,2]
[349619787,1737329472515,-227.99385077,0.00021662,2]
[349619788,1737329472525,-9814.00614923,0.00022,2]
[349619789,1737329472538,-485.22732997,0.00022,2]
[349619790,1737329472563,-290.1005,0.00022,2]
[349619791,1737329472576,-845.8832256,0.00022,2]
[349619792,1737329472589,-989669.64946739,0.00022,2]
[349619793,1737329472601,-3110.20907612,0.00022,2]
[349619794,1737329472613,-503.35,0.00022,2]
[349619795,1737329472630,-321.82,0.00021671,2]
[349619796,1737329472643,-328.39053946,0.00021671,2]
[349619797,1737329472654,-3207.65946054,0.00022,2]
[349619798,1737329472667,-6930.0,0.00022,2]
[349619799,1737329472680,-914.83165509,0.00022,2]
[349619800,1737329472693,-330.53763228,0.00022,2]
[349619801,1737329472706,-3443.66327701,0.00022,2]
[349619802,1737329472719,-894.05289418,0.00022,2]
[349619803,1737329472736,-500.0,0.00021936,2]
[349619804,1737329472746,-53882.12619597,0.00022,2]
[349619805,1737329472759,-2282.74918192,0.00022,2]
[349619806,1737329472771,-1039.449305,0.00022,2]
[349619807,1737329472784,-1772.03186758,0.00022,2]
[349619830,1737329940167,1414.79,0.00019979,30]
[349619846,1737330460239,158.39,0.00010137,2]
[349619848,1737330522613,150.0,0.00012329,2]
[349619883,1737330631951,-163.63,0.00012329,2]
[349619884,1737330631963,-172.99,0.00014963,2]
[349619885,1737330631973,-1215.71,0.00016203,2]
[349619886,1737330631983,-250.0,0.0001629,2]
[349619888,1737330631994,-175.77,0.00016712,2]
[349619890,1737330632003,-150.0,0.00017863,2]
[349619891,1737330632013,-2277.0,0.00018,2]
[349619892,1737330632022,-3988.46595805,0.00018,2]
[349619893,1737330632032,-1826.52,0.00018048,2]
[349619894,1737330632042,-171.92,0.00018085,2]
[349619895,1737330632051,-200.0,0.00018125,2]
[349619896,1737330632061,-1000.0,0.00018199,2]
[349619897,1737330632070,-605.77405721,0.00018221,2]
[349619898,1737330632080,-23900.0,0.00018257,2]
[349619899,1737330632090,-1188.61,0.00018288,2]
[349619900,1737330632100,-250.0,0.00018321,2]
[349619901,1737330632110,-200.0,0.00018321,2]
[349619902,1737330632120,-625.49025996,0.00018378,2]
[349619903,1737330632130,-300.0,0.00018383,2]
[349619904,1737330632140,-397.44,0.00018389,2]
[349619905,1737330632150,-478.0,0.000184,2]
[349619906,1737330632160,-377.46,0.00018454,2]
[349619907,1737330632170,-1215.71,0.00018467,2]
[349619908,1737330632180,-242.48,0.00018473,2]
[349619909,1737330632194,-994.92,0.00018482,2]
[349619910,1737330632203,-329.45,0.00018486,2]
[349619911,1737330632213,-171.61,0.00018706,2]
[349619912,1737330632222,-271.3,0.00018713,2]
[349619913,1737330632231,-250.0,0.00018748,2]
[349619914,1737330632240,-315.0,0.00018891,2]
[349619915,1737330632252,-250.0,0.00018891,2]
[349619916,1737330632263,-1817.51,0.0001909,2]
[349619917,1737330632272,-500.0,0.00019179,2]
[349619918,1737330632281,-1099.76,0.00019214,2]
[349619919,1737330632291,-200.0,0.00019253,2]
[349619920,1737330632300,-271.3,0.00019406,2]
[349619921,1737330632309,-13523.0,0.00019514,2]
[349619922,1737330632319,-15172.13,0.00019563,2]
[349619923,1737330632328,-500.0,0.00019602,2]
[349619924,1737330632338,-194.99,0.00019602,2]
[349619925,1737330632348,-924.38,0.00019711,2]
[349619926,1737330632358,-1000.0,0.00019726,14]
[349619927,1737330632368,-608.4299,0.0001984,2]
[349619928,1737330632377,-1712.66852808,0.0001984,2]
[349619929,1737330632390,-1470.9993,0.0001984,2]
[349619930,1737330632402,-1199.9999999,0.0001984,2]
[349619931,1737330632415,-616.33217202,0.0001984,2]
[349619932,1737330632426,-521.62737016,0.0001984,2]
[349619933,1737330632439,-528.21717402,0.0001984,2]
[349619934,1737330632458,-1971.78282598,0.0001984,2]
[349619935,1737330632468,-163.32339482,0.0001984,2]
[349619936,1737330632478,-2096.276,0.00019885,2]
[349619937,1737330632487,-500.0,0.00019886,2]
[349619938,1737330632497,-500.0,0.00019886,2]
[349619939,1737330632506,-500.0,0.00019886,2]
[349619940,1737330632517,-500.0,0.00019886,2]
[349619941,1737330632526,-273.88744656,0.00019886,2]
[349619942,1737330632536,-500.0,0.00019886,2]
[349619943,1737330632545,-500.0,0.00019886,2]
[349619944,1737330632555,-500.0,0.00019886,2]
[349619945,1737330632564,-500.0,0.00019886,2]
[349619946,1737330632573,-257.83,0.00019886,2]
[349619947,1737330632583,-500.0,0.00019886,2]
[349619948,1737330632593,-500.0,0.00019886,2]
[349619949,1737330632603,-500.0,0.00019886,2]
[349619950,1737330632616,-500.0,0.00019886,2]
[349619951,1737330632626,-500.0,0.00019886,2]
[349619952,1737330632635,-500.0,0.00019886,2]
[349619953,1737330632644,-500.0,0.00019886,2]
[349619954,1737330632654,-500.0,0.00019886,2]
[349619955,1737330632667,-500.0,0.00019886,2]
[349619956,1737330632676,-500.0,0.00019886,2]
[349619958,1737330632687,-500.0,0.00019886,2]
[349619960,1737330632698,-500.0,0.00019886,2]
[349619962,1737330632709,-500.0,0.00019886,2]
[349619965,1737330632719,-268.13557863,0.00019886,2]
[349619967,1737330632728,-500.0,0.00019886,2]
[349619969,1737330632738,-500.0,0.00019886,2]
[349619970,1737330632747,-500.0,0.00019886,2]
[349619972,1737330632756,-500.0,0.00019886,2]
[349619974,1737330632765,-500.0,0.00019886,2]
[349619976,1737330632776,-500.0,0.00019886,2]
[349619978,1737330632785,-500.0,0.00019886,2]
[349619980,1737330632795,-500.0,0.00019886,2]
[349619982,1737330632804,-500.0,0.00019886,2]
[349619983,1737330632813,-500.0,0.00019886,2]
[349619985,1737330632823,-500.0,0.00019886,2]
[349619987,1737330632832,-500.0,0.00019886,2]
[349619989,1737330632841,-500.0,0.00019886,2]
[349619991,1737330632851,-500.60805406,0.00019886,2]
[349619993,1737330632860,-500.0,0.00019886,2]
[349619995,1737330632870,-200.39040058,0.000199,2]
[349619996,1737330632880,-907.61,0.0001993,2]
[349619998,1737330632889,-907.61,0.0001993,2]
[349620000,1737330632899,-1308.99,0.00019939,2]
[349620002,1737330632908,-606.63,0.00019939,2]
[349620004,1737330632917,-1986.62,0.00019939,2]
[349620006,1737330632928,-1009.8,0.00019939,2]
[349620008,1737330632940,-2149.63,0.00019939,2]
[349620009,1737330632950,-500.0,0.00019939,2]
[349620011,1737330632959,-713.89,0.00019939,2]
[349620013,1737330632970,-884.71,0.00019939,2]
[349620015,1737330632980,-500.0,0.00019939,2]
[349620017,1737330632989,-2029.73,0.00019939,2]
[349620019,1737330632999,-640.47,0.00019939,2]
[349620021,1737330633009,-500.0,0.00019939,2]
[349620023,1737330633018,-1116.22,0.00019939,2]
[349620025,1737330633028,-1752.28,0.00019939,2]
[349620028,1737330633215,-794.49,0.00019939,2]
[349620031,1737330633231,-3012.1,0.00019939,2]
[349620033,1737330633242,-687.59,0.00019939,2]
[349620035,1737330633252,-742.97,0.00019939,2]
[349620037,1737330633262,-1315.8,0.00019939,2]
[349620039,1737330633272,-738.6,0.00019939,2]
[349620041,1737330633281,-1337.5,0.00019939,2]
[349620043,1737330633290,-500.0,0.00019939,2]
[349620045,1737330633300,-538.08,0.00019939,2]
[349620046,1737330633310,-500.0,0.00019939,2]
[349620049,1737330633319,-500.0,0.00019939,2]
[349620050,1737330633329,-1154.28,0.00019939,2]
[349620053,1737330633338,-586.93,0.00019939,2]
[349620054,1737330633348,-2419.72,0.00019939,2]
[349620057,1737330633357,-1243.34,0.00019939,2]
[349620058,1737330633367,-684.1,0.00019939,2]
[349620060,1737330633376,-544.85726327,0.00019939,2]
[349620064,1737330633397,-313.67129905,0.00019939,2]
[349620066,1737330633408,-257.6172882,0.00019939,2]
[349620069,1737330633431,-280.14414948,0.00019939,2]
[349620071,1737330633446,-765.77,0.00019939,2]
[349620073,1737330633455,-500.0,0.00019939,2]
[349620075,1737330633465,-554.76,0.00019939,2]
[349620077,1737330633475,-629.46,0.00019939,2]
[349620079,1737330633484,-500.0,0.00019939,2]
[349620081,1737330633494,-713.57,0.00019939,2]
[349620083,1737330633504,-500.0,0.00019939,2]
[349620085,1737330633513,-2188.94,0.00019939,2]
[349620087,1737330633522,-500.0,0.00019939,2]
[349620089,1737330633531,-500.0,0.00019939,2]
[349620091,1737330633540,-756.18,0.00019939,2]
[349620093,1737330633549,-500.0,0.00019939,2]
[349620095,1737330633559,-500.0,0.0001994,2]
[349620097,1737330633569,-500.0,0.0001994,2]
[349620099,1737330633580,-182.11463467,0.0001994,2]
[349620101,1737330633589,-500.0,0.0001994,2]
[349620103,1737330633599,-500.0,0.0001994,2]
[349620105,1737330633610,-500.0,0.0001994,2]
[349620107,1737330633621,-500.0,0.0001994,2]
[349620109,1737330633631,-500.0,0.0001994,2]
[349620111,1737330633641,-500.0,0.0001994,2]
[349620113,1737330633653,-500.0,0.0001994,2]
[349620115,1737330633664,-500.0,0.0001994,2]
[349620117,1737330633674,-500.0,0.0001994,2]
[349620119,1737330633691,-302.55205406,0.0001994,2]
[349620121,1737330633702,-500.0,0.0001994,2]
[349620123,1737330633712,-500.0,0.0001994,2]
[349620125,1737330633723,-500.0,0.0001994,2]
[349620127,1737330633733,-500.0,0.0001994,2]
[349620129,1737330633743,-500.0,0.0001994,2]
[349620131,1737330633753,-500.0,0.0001994,2]
[349620133,1737330633763,-500.0,0.0001994,2]
[349620135,1737330633774,-500.0,0.0001994,2]
[349620137,1737330633784,-500.0,0.0001994,2]
[349620139,1737330633794,-500.0,0.0001994,2]
[349620140,1737330633804,-500.0,0.0001994,2]
[349620141,1737330633815,-500.0,0.0001994,2]
[349620142,1737330633826,-500.0,0.0001994,2]
[349620143,1737330633836,-500.0,0.0001994,2]
[349620144,1737330633847,-500.0,0.0001994,2]
[349620145,1737330633856,-500.0,0.0001994,2]
[349620146,1737330633866,-500.0,0.0001994,2]
[349620147,1737330633876,-500.0,0.0001994,2]
[349620148,1737330633886,-500.0,0.0001994,2]
[349620149,1737330633897,-388.71,0.0001994,2]
[349620150,1737330633908,-392.0701443,0.0001994,2]
[349620151,1737330633919,-500.0,0.0001994,2]
[349620152,1737330633930,-285.3529995,0.0001994,2]
[349620153,1737330633948,-500.0,0.0001994,2]
[349620154,1737330633958,-500.0,0.0001994,2]
[349620155,1737330633967,-429.37848555,0.0001994,2]
[349620156,1737330633978,-500.0,0.0001994,2]
[349620157,1737330633988,-500.0,0.0001994,2]
[349620158,1737330633997,-500.0,0.0001994,2]
[349620159,1737330634007,-500.0,0.0001994,2]
[349620160,1737330634017,-500.0,0.0001994,2]
[349620161,1737330634027,-500.0,0.0001994,2]
[349620162,1737330634038,-500.0,0.0001994,2]
[349620163,1737330634048,-500.0,0.0001994,2]
[349620164,1737330634057,-474.472841,0.0001994,2]
[349620165,1737330634258,-25.527159,0.0001994,2]
[349620166,1737330634268,-261.702844,0.0001994,2]
[349620167,1737330634281,-238.297156,0.0001994,2]
[349620168,1737330634291,-333.04739451,0.0001994,2]
[349620169,1737330634303,-166.95260549,0.0001994,2]
[349620170,1737330634312,-500.0,0.0001994,2]
[349620171,1737330634321,-500.0,0.0001994,2]
[349620172,1737330634330,-402.90158814,0.0001994,2]
[349620173,1737330634345,-97.09841186,0.0001994,2]
[349620174,1737330634355,-500.0,0.0001994,2]
[349620175,1737330634364,-500.0,0.0001994,2]
[349620176,1737330634374,-155.31330584,0.0001994,2]
[349620177,1737330634386,-344.68669416,0.0001994,2]
[349620178,1737330634395,-500.0,0.0001994,2]
[349620179,1737330634405,-500.0,0.0001994,2]
[349620180,1737330634414,-421.49635745,0.0001994,2]
[349620181,1737330634428,-78.50364255,0.0001994,2]
[349620182,1737330634440,-500.0,0.0001994,2]
[349620183,1737330634450,-422.59635745,0.0001994,2]
[349620186,1737330637892,-1493.88555367,0.00014863,2]
[349620187,1737330637902,-77.40364255,0.0001994,2]
[349620188,1737330637911,-500.0,0.0001994,2]
[349620189,1737330637921,-500.0,0.0001994,2]
[349620190,1737330637931,-500.0,0.0001994,2]
[349620191,1737330637943,-500.0,0.0001994,2]
[349620192,1737330637953,-500.0,0.0001994,2]
[349620193,1737330637962,-278.85242509,0.0001994,2]
[349620194,1737330637972,-500.0,0.0001994,2]
[349620195,1737330637982,-500.0,0.0001994,2]
[349620196,1737330637992,-500.0,0.0001994,2]
[349620197,1737330638001,-500.0,0.0001994,2]
[349620198,1737330638011,-500.0,0.0001994,2]
[349620199,1737330638020,-500.0,0.0001994,2]
[349620200,1737330638030,-500.0,0.0001994,2]
[349620201,1737330638040,-500.0,0.0001994,2]
[349620202,1737330638049,-500.0,0.0001994,2]
[349620203,1737330638059,-500.0,0.0001994,2]
[349620204,1737330638069,-500.0,0.0001994,2]
[349620205,1737330638079,-500.0,0.0001994,2]
[349620206,1737330638088,-500.0,0.0001994,2]
[349620207,1737330638098,-500.0,0.0001994,2]
[349620208,1737330638107,-500.0,0.0001994,2]
[349620209,1737330638116,-500.0,0.0001994,2]
[349620210,1737330638125,-500.0,0.0001994,2]
[349620211,1737330638136,-500.0,0.0001994,2]
[349620212,1737330638147,-500.0,0.0001994,2]
[349620213,1737330638156,-500.0,0.0001994,2]
[349620214,1737330638166,-500.0,0.0001994,2]
[349620215,1737330638175,-500.0,0.0001994,2]
[349620216,1737330638185,-500.0,0.0001994,2]
[349620217,1737330638197,-500.0,0.0001994,2]
[349620218,1737330638207,-500.0,0.0001994,2]
[349620219,1737330638216,-500.0,0.0001994,2]
[349620220,1737330638225,-500.0,0.0001994,2]
[349620221,1737330638235,-500.0,0.0001994,2]
[349620222,1737330638245,-500.0,0.0001994,2]
[349620224,1737330638255,-500.0,0.0001994,2]
[349620226,1737330638264,-500.0,0.0001994,2]
[349620227,1737330638273,-500.0,0.0001994,2]
[349620228,1737330638282,-500.0,0.0001994,2]
[349620229,1737330638292,-500.0,0.0001994,2]
[349620230,1737330638301,-500.0,0.0001994,2]
[349620231,1737330638310,-500.0,0.0001994,2]
[349620232,1737330638319,-274.42072923,0.0001994,2]
[349620233,1737330638328,-306.85610938,0.0001994,2]
[349620234,1737330638338,-500.0,0.0001994,2]
[349620235,1737330638347,-500.0,0.0001994,2]
[349620236,1737330638356,-500.0,0.0001994,2]
[349620238,1737330638366,-500.0,0.0001994,2]
[349620240,1737330638375,-500.0,0.0001994,2]
[349620242,1737330638384,-500.0,0.0001994,2]
[349620244,1737330638393,-500.0,0.0001994,2]
[349620246,1737330638403,-500.0,0.0001994,2]
[349620248,1737330638412,-500.0,0.0001994,2]
[349620249,1737330638421,-182.81647299,0.0001994,2]
[349620252,1737330638431,-200.0,0.0001994,2]
[349620253,1737330638442,-500.0,0.0001994,2]
[349620255,1737330638451,-500.0,0.0001994,2]
[349620257,1737330638460,-500.0,0.0001994,2]
[349620259,1737330638469,-502.15532186,0.0001994,2]
[349620262,1737330638479,-500.0,0.0001994,2]
[349620263,1737330638489,-500.0,0.0001994,2]
[349620265,1737330638498,-500.0,0.0001994,2]
[349620267,1737330638507,-500.0,0.0001994,2]
[349620269,1737330638515,-500.0,0.0001994,2]
[349620271,1737330638525,-500.0,0.0001994,2]
[349620273,1737330638534,-500.0,0.0001994,2]
[349620275,1737330638543,-500.0,0.0001994,2]
[349620277,1737330638552,-500.0,0.0001994,2]
[349620279,1737330638562,-500.0,0.0001994,2]
[349620280,1737330638571,-500.0,0.0001994,2]
[349620282,1737330638580,-500.0,0.0001994,2]
[349620284,1737330638590,-381.47027022,0.0001994,2]
[349620286,1737330638599,-500.0,0.0001994,2]
[349620302,1737330638753,-500.0,0.0001994,2]
[349620304,1737330638763,-500.0,0.0001994,2]
[349620306,1737330638773,-500.0,0.0001994,2]
[349620308,1737330638782,-500.0,0.0001994,2]
[349620310,1737330638792,-500.0,0.0001994,2]
[349620312,1737330638801,-500.0,0.0001994,2]
[349620314,1737330638810,-500.0,0.0001994,2]
[349620316,1737330638819,-581.22117344,0.0001994,2]
[349620318,1737330638829,-500.0,0.0001994,2]
[349620320,1737330638841,-500.0,0.0001994,2]
[349620322,1737330638850,-500.0,0.0001994,2]
[349620324,1737330638859,-182.84734115,0.0001994,2]
[349620326,1737330638868,-500.0,0.0001994,2]
[349620328,1737330638878,-500.0,0.0001994,2]
[349620330,1737330638887,-500.0,0.0001994,2]
[349620332,1737330638896,-500.0,0.0001994,2]
[349620334,1737330638906,-500.0,0.0001994,2]
[349620336,1737330638915,-500.0,0.0001994,2]
[349620338,1737330638924,-500.0,0.0001994,2]
[349620340,1737330638933,-500.0,0.0001994,2]
[349620342,1737330638946,-500.0,0.0001994,2]
[349620344,1737330638955,-500.0,0.0001994,2]
[349620346,1737330638965,-500.0,0.0001994,2]
[349620348,1737330638974,-500.0,0.0001994,2]
[349620350,1737330638983,-500.0,0.0001994,2]
[349620352,1737330638994,-500.0,0.0001994,2]
[349620354,1737330639003,-500.0,0.0001994,2]
[349620356,1737330639013,-500.0,0.0001994,2]
[349620358,1737330639023,-500.0,0.0001994,2]
[349620360,1737330639032,-500.0,0.0001994,2]
[349620362,1737330639042,-500.0,0.0001994,2]
[349620364,1737330639051,-500.0,0.0001994,2]
[349620366,1737330639060,-500.0,0.0001994,2]
[349620368,1737330639070,-500.0,0.0001994,2]
[349620370,1737330639079,-500.0,0.0001994,2]
[349620372,1737330639088,-500.0,0.0001994,2]
[349620374,1737330639098,-500.0,0.0001994,2]
[349620376,1737330639107,-500.0,0.0001994,2]
[349620378,1737330639117,-500.0,0.0001994,2]
[349620380,1737330639126,-500.0,0.0001994,2]
[349620382,1737330639136,-500.0,0.0001994,2]
[349620384,1737330639145,-500.0,0.0001994,2]
[349620386,1737330639155,-150.0,0.0001994,2]
[349620388,1737330639164,-500.0,0.0001994,2]
[349620390,1737330639173,-500.0,0.0001994,2]
[349620392,1737330639183,-500.0,0.0001994,2]
[349620394,1737330639195,-677.87964315,0.0001994,2]
[349620396,1737330639204,-500.0,0.0001994,2]
[349620398,1737330639214,-500.0,0.0001994,2]
[349620400,1737330639223,-500.0,0.0001994,2]
[349620402,1737330639233,-500.0,0.0001994,2]
[349620404,1737330639242,-500.0,0.0001994,2]
[349620406,1737330639251,-500.0,0.0001994,2]
[349620408,1737330639261,-500.0,0.0001994,2]
[349620410,1737330639270,-500.0,0.0001994,2]
[349620412,1737330639280,-500.0,0.0001994,2]
[349620414,1737330639288,-500.0,0.0001994,2]
[349620416,1737330639300,-500.0,0.0001994,2]
[349620418,1737330639309,-500.0,0.0001994,2]
[349620420,1737330639318,-500.0,0.0001994,2]
[349620422,1737330639329,-500.0,0.0001994,2]
[349620424,1737330639338,-500.0,0.0001994,2]
[349620426,1737330639347,-500.0,0.0001994,2]
[349620428,1737330639357,-500.0,0.0001994,2]
[349620430,1737330639366,-517.77,0.0001994,2]
[349620432,1737330639376,-500.0,0.0001994,2]
[349620434,1737330639387,-500.0,0.0001994,2]
[349620436,1737330639396,-500.0,0.0001994,2]
[349620438,1737330639405,-500.0,0.0001994,2]
[349620440,1737330639414,-500.0,0.0001994,2]
[349620442,1737330639424,-500.0,0.0001994,2]
[349620444,1737330639433,-500.0,0.0001994,2]
[349620446,1737330639444,-500.0,0.0001994,2]
[349620448,1737330639454,-176.86,0.0002,14]
[349620450,1737330639463,-3543.54811902,0.0002,4]
[349620453,1737330639477,-1766.78270012,0.0002,4]
[349620455,1737330639487,-1293.25,0.00020054,2]
[349620457,1737330639496,-217.57424623,0.00020059,2]
[349620459,1737330639505,-521.62737008,0.00020069,2]
[349620461,1737330639515,-271.3,0.00020098,2]
[349620463,1737330639524,-166.80627003,0.00020112,2]
[349620465,1737330639533,-907.61,0.00020149,2]
[349620467,1737330639542,-500.0,0.00020159,2]
[349620469,1737330639552,-244.20159984,0.00020159,2]
[349620471,1737330639561,-500.0,0.00020159,2]
[349620473,1737330639571,-265.23756802,0.00020159,2]
[349620475,1737330639580,-500.0,0.00020159,2]
[349620477,1737330639589,-500.0,0.00020159,2]
[349620479,1737330639599,-500.0,0.00020159,2]
[349620481,1737330639608,-500.0,0.00020159,2]
[349620483,1737330639623,-500.0,0.00020159,2]
[349620485,1737330639633,-532.61435583,0.00020159,2]
[349620487,1737330639642,-642.84881495,0.00020159,2]
[349620489,1737330639651,-500.0,0.00020159,2]
[349620491,1737330639662,-500.0,0.00020159,2]
[349620493,1737330639672,-500.0,0.00020159,2]
[349620495,1737330639681,-500.0,0.00020159,2]
[349620497,1737330639694,-500.0,0.00020159,2]
[349620499,1737330639703,-500.0,0.00020159,2]
[349620501,1737330639712,-500.0,0.00020159,2]
[349620503,1737330639721,-500.0,0.00020159,2]
[349620505,1737330639730,-500.0,0.00020159,2]
[349620507,1737330639739,-542.59135245,0.00020159,2]
[349620509,1737330639749,-500.0,0.00020159,2]
[349620510,1737330639758,-500.0,0.00020159,2]
[349620512,1737330639767,-500.0,0.00020159,2]
[349620514,1737330639776,-500.0,0.00020159,2]